bitfinex-derivatives/quotes_BTCF0:USTF0_20251103
["timestamp","ask_amount","ask_price","bid_price","bid_amount"]
[1762212675529,0.14784811,106550.0,106540.0,0.1513608]
[1762212675729,0.24105028,106550.0,106540.0,0.1513608]
[1762212676223,0.24205028,106550.0,106540.0,0.1513608]
[1762212677636,0.24205028,106550.0,106540.0,0.5121608]
[1762212677924,0.14816118,106550.0,106540.0,0.60536297]
[1762212678124,0.03241901,106550.0,106540.0,0.60536297]
[1762212678327,0.001,106550.0,106540.0,0.60536297]
[1762212678522,0.001,106550.0,106540.0,0.69856514]
[1762212679026,0.001,106550.0,106540.0,0.60536297]
[1762212681939,0.094882,106550.0,106540.0,0.92976297]
[1762212682234,0.18808417,106550.0,106540.0,0.92976297]
[1762212683331,0.001,106550.0,106540.0,0.92976297]
[1762212683531,0.094882,106550.0,106540.0,0.92976297]
[1762212683842,0.003,106570.0,106560.0,0.1491332]
[1762212684032,0.04527,106590.0,106580.0,0.1521756]
[1762212684339,0.13847217,106590.0,106580.0,0.56973777]
[1762212685239,0.04527,106590.0,106580.0,0.4765356]
[1762212685433,0.13847217,106590.0,106580.0,0.4765356]
[1762212686234,0.23231897,106590.0,106580.0,0.4765356]
[1762212686434,0.13847217,106590.0,106580.0,0.4765356]
[1762212686840,0.23231897,106590.0,106580.0,0.38268]
[1762212687038,0.23231897,106590.0,106580.0,0.04517]
[1762212687039,0.69968114,106590.0,106580.0,0.04517]
[1762212688735,0.70168114,106590.0,106580.0,0.04517]
[1762212689341,1.02596114,106590.0,106580.0,0.04517]
[1762212690343,0.95589639,106590.0,106580.0,0.04517]
[1762212693642,0.95589639,106590.0,106580.0,0.1390256]
[1762212694946,0.1521744,106570.0,106560.0,0.4967931]
[1762212695140,0.26851399,106570.0,106560.0,0.4967931]
[1762212697348,0.26851399,106570.0,106560.0,0.04212]
[1762212697650,0.62931399,106570.0,106560.0,0.04212]
[1762212698351,0.63031399,106570.0,106560.0,0.04212]
[1762212698653,0.95455399,106570.0,106560.0,0.04212]
[1762212698850,0.95555399,106570.0,106560.0,0.04212]
[1762212699053,0.95555399,106570.0,106560.0,0.1359932]
[1762212699353,0.95355399,106570.0,106560.0,0.1359932]
[1762212699651,0.95455399,106570.0,106560.0,0.1359932]
[1762212700849,0.38355,106570.0,106560.0,0.1491732]
[1762212701045,0.4649744,106570.0,106560.0,0.1491732]
[1762212701250,0.37111,106570.0,106560.0,0.5099732]
[1762212701650,0.38355,106570.0,106560.0,0.5099732]
[1762212701857,0.1531744,106570.0,106560.0,0.1491732]
[1762212702041,0.1531744,106570.0,106560.0,0.5099732]
[1762212703342,0.05931,106570.0,106560.0,0.5099732]
[1762212703542,0.1531744,106570.0,106560.0,0.5099732]
[1762212706848,0.26951399,106570.0,106560.0,0.5099732]
[1762212708044,0.25607399,106570.0,106560.0,0.5099732]
[1762212708250,0.1397344,106570.0,106560.0,0.5099732]
[1762212709359,0.04587,106570.0,106560.0,0.5099732]
[1762212710055,0.04587,106570.0,106560.0,0.54348156]
[1762212711362,0.1397344,106570.0,106560.0,0.54348156]
[1762212711859,0.04587,106570.0,106560.0,0.54348156]
[1762212712054,0.1397344,106570.0,106560.0,0.54348156]
[1762212712364,0.23280302,106570.0,106560.0,0.54348156]
[1762212712753,0.24645302,106570.0,106560.0,0.54348156]
[1762212713467,0.24645302,106570.0,106560.0,0.08880836]
[1762212713653,0.60725302,106570.0,106560.0,0.07562836]
[1762212713854,0.1519432,106560.0,106550.0,0.17133976]
[1762212714064,1.02312044,106560.0,106550.0,0.05457836]
[1762212714363,0.151902,106550.0,106540.0,0.07745836]
[1762212714565,0.60577062,106550.0,106540.0,0.07745836]
[1762212714763,0.60577062,106550.0,106540.0,0.18528916]
[1762212714968,0.59241062,106550.0,106540.0,0.18528916]
[1762212715163,0.59241062,106550.0,106540.0,0.1517808]
[1762212715753,0.59241062,106550.0,106540.0,0.1527808]
[1762212716152,0.60606062,106550.0,106540.0,0.04495]
[1762212716352,0.60606062,106550.0,106540.0,0.05889]
[1762212716565,0.59241062,106550.0,106540.0,0.05889]
[1762212717467,0.59341062,106550.0,106540.0,0.1517808]
[1762212718662,0.60293105,106550.0,106540.0,0.1517808]
[1762212720568,0.61599105,106550.0,106540.0,0.1517808]
[1762212720770,0.61599105,106550.0,106540.0,0.1378408]
[1762212721367,0.63788802,106550.0,106540.0,0.02107]
[1762212721569,0.1522008,106540.0,106530.0,0.1510267]
[1762212721774,0.24526942,106540.0,106530.0,0.1378467]
[1762212722066,0.60606942,106540.0,106530.0,0.1378467]
[1762212722473,0.60606942,106540.0,106530.0,0.04395]
[1762212724268,0.60606942,106540.0,106530.0,0.1378497]
[1762212725166,0.60706942,106540.0,106530.0,0.04395]
[1762212725473,0.1519996,106530.0,106520.0,0.04395]
[1762212725676,0.24506822,106530.0,106520.0,0.04395]
[1762212726476,0.60586822,106530.0,106520.0,0.04395]
[1762212730179,0.1519873,106510.0,106500.0,0.56646934]
[1762212730367,0.24505592,106510.0,106500.0,0.46534117]
[1762212730974,0.24505592,106510.0,106500.0,0.47928117]
[1762212731474,0.24505592,106510.0,106500.0,0.04714117]
[1762212731677,0.24505592,106510.0,106500.0,0.05014117]
[1762212732080,0.2543807,106510.0,106500.0,0.05014117]
[1762212732473,0.2543807,106510.0,106500.0,0.14406757]
[1762212734783,0.06739478,106510.0,106500.0,0.15751757]
[1762212736272,0.05398478,106510.0,106500.0,0.15751757]
[1762212736578,0.1385773,106510.0,106500.0,0.15751757]
[1762212736784,0.1511973,106510.0,106500.0,0.15751757]
[1762212738579,0.05728,106510.0,106500.0,0.15751757]
[1762212738876,0.06651642,106510.0,106500.0,0.51831757]
[1762212739084,0.05728,106510.0,106500.0,0.51831757]
[1762212739786,0.04466,106510.0,106500.0,0.61138619]
[1762212739976,0.02189,106510.0,106500.0,0.61138619]
[1762212740185,0.04485,106510.0,106500.0,0.61138619]
[1762212740682,0.1387673,106510.0,106500.0,0.61138619]
[1762212741286,0.1387673,106510.0,106500.0,0.51831757]
[1762212741987,0.04485,106510.0,106500.0,0.51831757]
[1762212743780,0.02189,106510.0,106500.0,0.61138619]
[1762212744181,0.02189,106510.0,106500.0,0.66205436]
[1762212744685,0.02189,106510.0,106500.0,0.61138619]
[1762212744890,0.1387673,106510.0,106500.0,0.51831757]
[1762212745388,0.23183592,106510.0,106500.0,0.51831757]
[1762212747183,0.13791862,106510.0,106500.0,0.51831757]
[1762212747702,0.23183592,106510.0,106500.0,0.51831757]
[1762212748191,0.1387673,106510.0,106500.0,0.51831757]
[1762212748793,0.1387673,106510.0,106500.0,0.56898574]
[1762212749189,0.1521873,106510.0,106500.0,0.56898574]
[1762212749390,0.1387673,106510.0,106500.0,0.56898574]
[1762212749693,0.1518073,106510.0,106500.0,0.51831757]
[1762212749893,0.24487592,106510.0,106500.0,0.84263757]
[1762212751491,0.24487592,106510.0,106500.0,0.89330574]
[1762212752394,0.23183592,106510.0,106500.0,0.89330574]
[1762212753301,0.13791862,106510.0,106500.0,0.89330574]
[1762212754301,0.23183272,106510.0,106500.0,0.89330574]
[1762212755801,0.13791862,106510.0,106500.0,0.89330574]
[1762212757100,0.23183272,106510.0,106500.0,0.89330574]
[1762212757307,0.25388176,106510.0,106500.0,0.89330574]
[1762212758496,0.26692176,106510.0,106500.0,0.89330234]
[1762212758998,0.26692176,106510.0,106500.0,0.89130234]
[1762212759398,0.26692176,106510.0,106500.0,0.79737934]
[1762212759795,0.26692176,106510.0,106500.0,0.89130234]
[1762212761108,0.17300766,106510.0,106500.0,0.89130234]
[1762212761409,0.15996766,106510.0,106500.0,0.89130234]
[1762212761610,0.25388186,106510.0,106500.0,0.89130234]
[1762212762109,0.15996766,106510.0,106500.0,0.89130234]
[1762212762518,0.25388186,106510.0,106500.0,0.89130234]
[1762212763309,0.15996766,106510.0,106500.0,0.89130234]
[1762212763514,0.06689904,106510.0,106500.0,0.89130234]
[1762212764707,0.04393904,106510.0,106500.0,0.89130234]
[1762212764904,0.06539904,106510.0,106500.0,0.90089531]
[1762212765112,0.06539904,106510.0,106500.0,0.84063417]
[1762212765310,0.21917209,106520.0,106510.0,0.04471]
[1762212765514,0.26268169,106520.0,106510.0,0.46923136]
[1762212765813,0.26268169,106520.0,106510.0,0.56314546]
[1762212768015,0.16961307,106520.0,106510.0,0.56314546]
[1762212768313,0.26268169,106520.0,106510.0,0.56314546]
[1762212771012,0.27632169,106520.0,106510.0,0.46923136]
[1762212771318,0.27632169,106520.0,106510.0,0.10843136]
[1762212771816,0.27632169,106520.0,106510.0,0.09542136]
[1762212772513,0.36960703,106520.0,106510.0,0.09542136]
[1762212773216,0.36960703,106520.0,106510.0,0.18933536]
[1762212775307,0.36960703,106520.0,106510.0,0.09542136]
[1762212775718,0.36960703,106520.0,106510.0,0.18933536]
[1762212776015,0.36960703,106520.0,106510.0,0.09542136]
[1762212776914,0.73040703,106520.0,106510.0,0.09542136]
[1762212780909,0.73040703,106520.0,106510.0,0.18933536]
[1762212781217,0.36960703,106520.0,106510.0,0.18933536]
[1762212781820,0.73040703,106520.0,106510.0,0.18933536]
[1762212783319,0.36960703,106520.0,106510.0,0.18933536]
[1762212783521,0.36960703,106520.0,106510.0,0.20234536]
[1762212783708,0.36960703,106520.0,106510.0,0.56314536]
[1762212783908,0.35596703,106520.0,106510.0,0.56314536]
[1762212784620,0.16887895,106520.0,106510.0,0.56314536]
[1762212784812,0.0220496,106520.0,106510.0,0.60561098]
[1762212785014,0.93120105,106540.0,106530.0,0.0938964]
[1762212785226,0.60297783,106540.0,106530.0,0.1516164]
[1762212785521,0.25344307,106540.0,106530.0,0.1516164]
[1762212785823,0.25344307,106540.0,106530.0,0.20233002]
[1762212786218,0.15955557,106540.0,106530.0,0.656307]
[1762212786611,0.25344307,106540.0,106530.0,0.56313002]
[1762212786819,0.25444307,106540.0,106530.0,0.56313002]
[1762212787414,0.25444307,106540.0,106530.0,0.60559338]
[1762212787624,0.25444307,106540.0,106530.0,0.5124164]
[1762212789723,0.25344307,106540.0,106530.0,0.5124164]
[1762212790025,0.15955557,106540.0,106530.0,0.5124164]
[1762212790226,0.25344317,106540.0,106530.0,0.5124164]
[1762212790426,0.13751698,106540.0,106530.0,0.5124164]
[1762212790617,0.23140478,106540.0,106530.0,0.5124164]
[1762212792027,0.13751698,106540.0,106530.0,0.5124164]
[1762212792328,0.24077761,106550.0,106540.0,0.1516077]
[1762212792528,0.26274082,106550.0,106540.0,0.1516077]
[1762212793535,0.26374082,106550.0,106540.0,0.1516077]
[1762212794032,0.27738082,106550.0,106540.0,0.1516077]
[1762212794328,0.27738082,106550.0,106540.0,0.4757677]
[1762212796533,0.25541761,106550.0,106540.0,0.4757677]
[1762212796723,0.27737059,106550.0,106540.0,0.4757677]
[1762212797431,0.26373059,106550.0,106540.0,0.4757677]
[1762212797733,0.16984509,106550.0,106540.0,0.4757677]
[1762212797936,0.14789211,106550.0,106540.0,0.8365677]
[1762212798732,0.13851698,106550.0,106540.0,0.8365677]
[1762212799530,0.23139008,106550.0,106540.0,0.8365677]
[1762212799936,0.24064294,106550.0,106540.0,0.8365677]
[1762212805039,0.14676984,106550.0,106540.0,0.8365677]
[1762212805934,0.11605698,106550.0,106540.0,0.8365677]
[1762212806239,0.24193473,106550.0,106540.0,0.8365677]
[1762212809937,0.14806173,106550.0,106540.0,0.8365677]
[1762212810238,0.13883698,106550.0,106540.0,0.8365677]
[1762212810738,0.23271008,106550.0,106540.0,0.8365677]
[1762212811429,0.24200324,106550.0,106540.0,0.8365677]
[1762212813429,0.26394848,106550.0,106540.0,0.8365677]
[1762212813831,0.26394824,106550.0,106540.0,0.8365677]
[1762212814126,0.24200324,106550.0,106540.0,0.8365677]
[1762212814334,0.26396049,106550.0,106540.0,0.88728132]
[1762212814737,0.17008739,106550.0,106540.0,0.88728132]
[1762212815031,0.26396049,106550.0,106540.0,0.88728132]
[1762212815838,0.13801423,106550.0,106540.0,0.88728132]
[1762212816041,0.11513423,106550.0,106540.0,0.9804583]
[1762212816542,0.02195725,106550.0,106540.0,0.9804583]
[1762212817037,0.20900723,106550.0,106540.0,0.9804583]
[1762212817746,0.11513423,106550.0,106540.0,0.9804583]
[1762212818744,0.09317698,106550.0,106540.0,0.9804583]
[1762212818938,0.11565698,106550.0,106540.0,0.9804583]
[1762212819143,0.13878698,106550.0,106540.0,0.9804583]
[1762212819841,0.23265998,106550.0,106540.0,0.9804583]
[1762212820044,0.24197515,106560.0,106550.0,0.151753]
[1762212820235,0.26393923,106560.0,106550.0,0.20246662]
[1762212820435,0.26393923,106560.0,106550.0,0.56326662]
[1762212820634,0.25462076,106560.0,106550.0,0.56326662]
[1762212821845,0.25462076,106560.0,106550.0,0.6564436]
[1762212822139,0.26411125,106560.0,106550.0,0.6564436]
[1762212822751,0.25562076,106560.0,106550.0,0.6564436]
[1762212823138,0.25562076,106560.0,106550.0,0.56326662]
[1762212823335,0.23365668,106560.0,106550.0,0.56326662]
[1762212823748,0.24325494,106560.0,106550.0,0.56326662]
[1762212826449,0.26521635,106560.0,106550.0,0.56326662]
[1762212829649,0.17203937,106560.0,106550.0,0.56326662]
[1762212829951,0.26521635,106560.0,106550.0,0.56326662]
[1762212830548,0.17203937,106560.0,106550.0,0.56326662]
[1762212830746,0.26521635,106560.0,106550.0,0.56326662]
[1762212830947,0.24325494,106560.0,106550.0,0.56326662]
[1762212831454,0.14938524,106560.0,106550.0,0.56326662]
[1762212831753,0.14938524,106560.0,106550.0,0.6564436]
[1762212832355,0.15007256,106560.0,106550.0,0.56326662]
[1762212833857,0.1404743,106560.0,106550.0,0.56326662]
[1762212838462,0.04661,106560.0,106550.0,0.56326662]
[1762212839256,0.1404743,106560.0,106550.0,0.56326662]
[1762212841462,0.04661,106560.0,106550.0,0.56326662]
[1762212842061,0.001,106560.0,106550.0,0.65634813]
[1762212842457,0.1382666,106580.0,106570.0,0.1254848]
[1762212842765,0.0437441,106580.0,106570.0,0.88253205]
[1762212843361,0.21217004,106590.0,106580.0,0.1367466]
[1762212843362,0.23134481,106590.0,106580.0,0.1367466]
[1762212843567,0.25346215,106590.0,106580.0,0.1506066]
[1762212844356,0.26270048,106590.0,106580.0,0.1506066]
[1762212845963,0.26670048,106590.0,106580.0,0.1506066]
[1762212847066,0.02611734,106590.0,106580.0,0.1506066]
[1762212847271,0.004,106590.0,106580.0,0.60448811]
[1762212847464,0.004,106590.0,106580.0,0.65513536]
[1762212847663,0.004,106590.0,106580.0,0.67211039]
[1762212847864,0.04742,106610.0,106600.0,0.149309]
[1762212848171,0.003,106610.0,106600.0,0.833989]
[1762212848372,1.503,106610.0,106600.0,1.194789]
[1762212849370,1.503,106610.0,106600.0,1.20428781]
[1762212849566,1.503,106610.0,106600.0,1.29736932]
[1762212849769,0.4881295,106630.0,106620.0,0.1154914]
[1762212849974,0.61415801,106630.0,106620.0,0.4722314]
[1762212850166,0.59211101,106630.0,106620.0,0.4722314]
[1762212850361,0.4990295,106630.0,106620.0,0.4722314]
[1762212850566,0.59211101,106630.0,106620.0,0.4722314]
[1762212850775,0.4990295,106630.0,106620.0,0.4722314]
[1762212851261,0.1382295,106630.0,106620.0,0.8330314]
[1762212851462,0.1392295,106630.0,106620.0,0.8330314]
[1762212852466,0.04442,106630.0,106620.0,0.8330314]
[1762212852775,0.1382226,106630.0,106620.0,0.8340314]
[1762212853373,1.6382226,106630.0,106620.0,0.8340314]
[1762212856780,1.54442,106630.0,106620.0,0.8340314]
[1762212856984,1.5,106630.0,106620.0,0.92711291]
[1762212858088,0.1388444,106640.0,106630.0,0.1497227]
[1762212858283,0.04505,106640.0,106630.0,0.5105227]
[1762212858676,1.54505,106640.0,106630.0,0.5105227]
[1762212859076,1.6388439,106640.0,106630.0,0.5105227]
[1762212861094,1.6522439,106640.0,106630.0,0.5105227]
[1762212861394,1.6388439,106640.0,106630.0,0.5105227]
[1762212861986,1.54505,106640.0,106630.0,0.5105227]
[1762212862194,1.6388439,106640.0,106630.0,0.5105227]
[1762212862386,1.54505,106640.0,106630.0,0.5105227]
[1762212862582,1.6388439,106640.0,106630.0,0.60360421]
[1762212862782,0.1187185,106650.0,106640.0,0.1364739]
[1762212863089,0.1552351,106650.0,106640.0,0.74044]
[1762212863284,0.24831661,106650.0,106640.0,0.74044]
[1762212863590,0.24831661,106650.0,106640.0,0.8342339]
[1762212864084,0.25782144,106650.0,106640.0,0.8342339]
[1762212864292,0.25882144,106650.0,106640.0,0.8342339]
[1762212865184,0.04905,106650.0,106640.0,0.8342339]
[1762212865500,0.02593,106650.0,106640.0,0.92731541]
[1762212865687,0.04905,106650.0,106640.0,0.8342339]
[1762212866089,0.1428351,106650.0,106640.0,0.8342339]
[1762212866794,0.1418351,106650.0,106640.0,0.8362339]
[1762212868486,0.04805,106650.0,106640.0,0.8362339]
[1762212868692,0.1418351,106650.0,106640.0,0.8362339]
[1762212871397,0.04805,106650.0,106640.0,0.8362339]
[1762212871598,0.003,106650.0,106640.0,0.92931541]
[1762212872398,0.0967851,106650.0,106640.0,0.92931541]
[1762212873105,0.1183251,106650.0,106640.0,0.92931541]
[1762212873500,0.1400051,106650.0,106640.0,0.92931541]
[1762212873695,0.1400051,106650.0,106640.0,0.8362339]
[1762212874508,0.1400051,106650.0,106640.0,0.92931541]
[1762212874702,0.1400051,106650.0,106640.0,0.8362339]
[1762212874905,0.1400051,106650.0,106640.0,0.92931541]
[1762212875105,0.24629661,106650.0,106640.0,0.41872]
[1762212875303,0.24629661,106650.0,106640.0,0.72912]
[1762212876107,0.24629661,106650.0,106640.0,0.74283]
[1762212876304,0.24629661,106650.0,106640.0,0.74083]
[1762212876505,0.24629661,106650.0,106640.0,0.74183]
[1762212876701,0.24629661,106650.0,106640.0,0.36732]
[1762212877206,0.24629661,106650.0,106640.0,0.38103]
[1762212877410,0.26816503,106650.0,106640.0,0.38103]
[1762212877609,0.26816503,106650.0,106640.0,0.36732]
[1762212877811,0.17508352,106650.0,106640.0,0.36732]
[1762212878013,0.26816503,106650.0,106640.0,0.36732]
[1762212878207,0.26816503,106650.0,106640.0,0.4611139]
[1762212878406,0.26816503,106650.0,106640.0,0.4748239]
[1762212879108,0.16187352,106650.0,106640.0,0.4748239]
[1762212879315,0.25495503,106650.0,106640.0,0.4748239]
[1762212879613,0.25495503,106650.0,106640.0,0.38103]
[1762212880409,0.26816503,106650.0,106640.0,0.36732]
[1762212880610,0.1502327,106630.0,106620.0,0.02166]
[1762212880802,0.62598263,106630.0,106620.0,0.04371]
[1762212881210,0.65122579,106630.0,106620.0,0.04371]
[1762212882409,0.1502415,106620.0,106610.0,0.74011]
[1762212882712,0.26519143,106620.0,106610.0,0.37931]
[1762212882914,1.65889992,106620.0,106610.0,0.8339303]
[1762212883214,1.56508842,106620.0,106610.0,0.8339303]
[1762212883409,1.65889992,106620.0,106610.0,0.8339303]
[1762212883810,1.65889992,106620.0,106610.0,0.8349303]
[1762212884121,1.75198143,106620.0,106610.0,0.74111]
[1762212884323,1.76519143,106620.0,106610.0,0.74111]
[1762212884620,1.76519143,106620.0,106610.0,0.38031]
[1762212886407,1.63721992,106620.0,106610.0,0.05639]
[1762212886612,1.52186842,106620.0,106610.0,0.60409181]
[1762212886809,1.5,106620.0,106610.0,0.1502103]
[1762212887113,0.1506289,106640.0,106630.0,0.1482727]
[1762212887321,0.17249935,106640.0,106630.0,0.5090727]
[1762212887616,0.17249935,106640.0,106630.0,0.1482727]
[1762212887918,0.07870045,106640.0,106630.0,0.5090727]
[1762212888922,0.08070045,106640.0,106630.0,0.5090727]
[1762212889219,0.04571,106640.0,106630.0,0.5090727]
[1762212890014,0.04371,106640.0,106630.0,0.5100727]
[1762212891916,0.04371,106640.0,106630.0,0.5120727]
[1762212893824,0.137504,106640.0,106630.0,0.5120727]
[1762212894318,0.23044634,106640.0,106630.0,0.5120727]
[1762212894919,0.33650868,106640.0,106630.0,0.41827]
[1762212895418,0.33650868,106640.0,106630.0,0.41527]
[1762212895621,0.33650868,106640.0,106630.0,0.41727]
[1762212895821,0.33650868,106640.0,106630.0,0.5110728]
[1762212896127,0.33650868,106640.0,106630.0,0.5100728]
[1762212896626,0.33650868,106640.0,106630.0,0.5090728]
[1762212897016,0.137504,106640.0,106630.0,0.5090728]
[1762212897217,0.32338868,106640.0,106630.0,0.5090728]
[1762212898426,0.32338868,106640.0,106630.0,0.5100728]
[1762212899732,0.23044634,106640.0,106630.0,0.5100728]
[1762212900727,0.22959468,106640.0,106630.0,0.5100728]
[1762212900918,0.13665234,106640.0,106630.0,0.60301514]
[1762212901826,0.02142,106640.0,106630.0,0.60301514]
[1762212902014,0.23344394,106650.0,106640.0,0.152024]
[1762212902217,0.25544679,106650.0,106640.0,0.152024]
[1762212902426,0.25544679,106650.0,106640.0,0.24496634]
[1762212902726,0.25544679,106650.0,106640.0,0.56888634]
[1762212903224,0.25544679,106650.0,106640.0,0.475944]
[1762212903825,0.16165519,106650.0,106640.0,0.475944]
[1762212904131,0.13965234,106650.0,106640.0,0.836744]
[1762212904721,0.13965234,106650.0,106640.0,0.92968634]
[1762212906331,0.23343754,106650.0,106640.0,0.92968634]
[1762212907631,0.02442,106650.0,106640.0,0.92968634]
[1762212908132,0.04671,106650.0,106640.0,0.92968634]
[1762212908535,0.04671,106650.0,106640.0,0.98024237]
[1762212908737,0.04671,106650.0,106640.0,0.88730003]
[1762212909037,0.02442,106650.0,106640.0,1.07318471]
[1762212909225,0.003,106650.0,106640.0,1.07318471]
[1762212910835,0.04671,106650.0,106640.0,0.88730003]
[1762212911135,0.1182052,106650.0,106640.0,0.98024237]
[1762212912435,1.6182052,106650.0,106640.0,0.98024237]
[1762212912636,1.52442,106650.0,106640.0,0.98024237]
[1762212913043,0.003,106650.0,106640.0,1.30762471]
[1762212913230,0.12466098,106670.0,106660.0,0.05667]
[1762212913532,0.12466098,106670.0,106660.0,0.47345234]
[1762212913533,1.66896384,106670.0,106660.0,0.47345234]
[1762212914431,1.66896384,106670.0,106660.0,0.56722874]
[1762212914635,1.67096384,106670.0,106660.0,0.56722874]
[1762212915039,1.76390618,106670.0,106660.0,0.4742864]
[1762212915229,1.76390618,106670.0,106660.0,0.56722874]
[1762212915728,1.67096384,106670.0,106660.0,0.56722874]
[1762212916523,1.64895098,106670.0,106660.0,0.56722874]
[1762212916735,1.76392052,106670.0,106660.0,0.56722874]
[1762212917533,1.67097818,106670.0,106660.0,0.56722874]
[1762212918331,1.76392052,106670.0,106660.0,0.56722874]
[1762212919531,1.67097818,106670.0,106660.0,0.56722874]
[1762212919834,1.67097818,106670.0,106660.0,1.02097108]
[1762212919835,1.502,106670.0,106660.0,1.02097108]
[1762212920138,1.502,106670.0,106660.0,1.07152711]
[1762212920838,0.002,106670.0,106660.0,1.07152711]
[1762212921339,0.002,106670.0,106660.0,1.30588711]
[1762212924839,1.5,106680.0,106670.0,0.1507976]
[1762212925036,1.5,106680.0,106670.0,0.74795505]
[1762212925541,1.5,106680.0,106670.0,0.75719657]
[1762212926741,1.5,106680.0,106670.0,0.66425423]
[1762212927137,1.503,106680.0,106670.0,0.65501271]
[1762212928439,1.503,106680.0,106670.0,0.66417262]
[1762212928745,0.003,106680.0,106670.0,0.66417262]
[1762212930343,0.003,106680.0,106670.0,0.89853262]
[1762212930546,0.003,106680.0,106670.0,0.99147496]
[1762212930748,0.0486,106690.0,106680.0,0.1509088]
[1762212930948,0.0486,106690.0,106680.0,1.02139348]
[1762212931855,0.0496,106690.0,106680.0,1.02139348]
[1762212932232,0.02707,106690.0,106680.0,1.02139348]
[1762212932846,0.0496,106690.0,106680.0,1.02139348]
[1762212933341,0.004,106690.0,106680.0,1.02139348]
[1762212933840,0.003,106690.0,106680.0,1.02139348]
[1762212934150,0.003,106690.0,106680.0,1.02339348]
[1762212934645,0.02404,106690.0,106680.0,1.02339348]
[1762212934841,0.003,106690.0,106680.0,1.02339348]
[1762212935142,0.24667244,106690.0,106680.0,0.04652]
[1762212935540,0.70041478,106690.0,106680.0,0.04652]
[1762212935734,0.5145301,106690.0,106680.0,0.02342]
[1762212935939,0.70041478,106690.0,106680.0,0.02342]
[1762212936243,0.70041478,106690.0,106680.0,0.002]
[1762212936444,1.04631907,106690.0,106680.0,0.002]
[1762212937546,1.28063907,106690.0,106680.0,0.002]
[1762212940641,1.28063907,106690.0,106660.0,0.88561687]
[1762212940642,0.1470176,106670.0,106660.0,0.88561687]
[1762212940845,0.23995994,106670.0,106660.0,0.88561687]
[1762212941142,0.23995994,106670.0,106660.0,0.72918]
[1762212941942,0.23995994,106670.0,106660.0,0.36838]
[1762212942145,0.23995994,106670.0,106660.0,0.37238]
[1762212942348,1.01754228,106670.0,106660.0,0.004]
[1762212942649,1.03954748,106670.0,106660.0,0.004]
[1762212943245,0.94660514,106670.0,106660.0,0.1422364]
[1762212943445,0.62276514,106670.0,106660.0,0.23517874]
[1762212943650,0.62276514,106670.0,106660.0,0.1382364]
[1762212943952,0.62376514,106670.0,106660.0,0.04446]
[1762212944144,0.62376514,106670.0,106660.0,0.23117874]
[1762212944345,0.60175994,106670.0,106660.0,0.24380874]
[1762212944542,0.24095994,106670.0,106660.0,0.51083234]
[1762212944744,0.24095994,106670.0,106660.0,0.05709]
[1762212944944,0.24095994,106670.0,106660.0,0.04446]
[1762212945143,0.60175994,106670.0,106660.0,0.04446]
[1762212945450,0.71670938,106670.0,106660.0,0.04446]
[1762212945950,0.62376704,106670.0,106660.0,0.04446]
[1762212946845,0.62376704,106670.0,106660.0,0.0442]
[1762212947546,0.24095994,106670.0,106660.0,0.405]
[1762212948446,0.24095994,106670.0,106660.0,0.4987764]
[1762212948646,0.24095994,106670.0,106660.0,0.405]
[1762212948847,0.62376854,106670.0,106660.0,0.0442]
[1762212949654,0.1502764,106660.0,106650.0,0.36984]
[1762212949953,0.33616108,106660.0,106650.0,0.36984]
[1762212950954,0.33616108,106660.0,106650.0,0.37084]
[1762212952350,1.11374342,106660.0,106650.0,0.001]
[1762212952556,1.02080108,106660.0,106650.0,0.001]
[1762212952850,1.04279895,106660.0,106650.0,0.001]
[1762212953348,1.02080108,106660.0,106650.0,0.001]
[1762212953554,0.1502852,106650.0,106640.0,0.73052]
[1762212953755,0.24322754,106650.0,106640.0,0.73052]
[1762212954649,0.24322754,106650.0,106640.0,0.73152]
[1762212954850,0.04308,106650.0,106640.0,0.93188634]
[1762212955343,0.24322754,106650.0,106640.0,0.73152]
[1762212955943,0.25257201,106650.0,106640.0,0.40768]
[1762212956146,0.25257201,106650.0,106640.0,0.40668]
[1762212956346,0.15962967,106650.0,106640.0,0.40668]
[1762212956547,0.15962967,106650.0,106640.0,0.500474]
[1762212956943,0.15962967,106650.0,106640.0,0.501474]
[1762212957147,0.15962967,106650.0,106640.0,0.515104]
[1762212957548,0.04308,106650.0,106640.0,0.515104]
[1762212959860,0.1368652,106650.0,106640.0,0.60802754]
[1762212960155,0.1368652,106650.0,106640.0,0.515104]
[1762212960856,0.1368652,106650.0,106640.0,0.56557677]
[1762212961156,0.1368652,106650.0,106640.0,0.515104]
[1762212961350,0.1368652,106650.0,106640.0,0.56557677]
[1762212961560,0.24320874,106650.0,106640.0,0.38484]
[1762212962252,0.24320874,106650.0,106640.0,0.501474]
[1762212962656,0.1502852,106650.0,106640.0,0.501474]
[1762212963359,0.0565,106650.0,106640.0,0.515104]
[1762212963552,0.04308,106650.0,106640.0,0.65850031]
[1762212964850,0.04308,106650.0,106640.0,0.56557677]
[1762212965056,0.1368652,106650.0,106640.0,0.65850031]
[1762212965558,0.1368652,106650.0,106640.0,0.56557677]
[1762212965760,0.1368652,106650.0,106640.0,0.47178277]
[1762212966358,0.1368652,106650.0,106640.0,0.56557677]
[1762212969457,0.1368652,106650.0,106640.0,0.515104]
[1762212970161,0.04308,106650.0,106640.0,0.58272628]
[1762212970367,0.04308,106650.0,106640.0,0.67564982]
[1762212971067,0.1368652,106650.0,106640.0,0.67564982]
[1762212971671,0.1368652,106650.0,106640.0,0.58272628]
[1762212971867,0.1368652,106650.0,106640.0,0.515104]
[1762212972071,0.1368652,106650.0,106640.0,0.530004]
[1762212972776,0.24320874,106650.0,106640.0,0.544904]
[1762212973066,0.24320874,106650.0,106640.0,0.12728738]
[1762212973274,0.24320874,106650.0,106640.0,0.45092738]
[1762212973467,0.26537089,106650.0,106640.0,0.45092738]
[1762212974372,0.17244735,106650.0,106640.0,0.44992738]
[1762212975269,0.17244735,106650.0,106640.0,0.12628738]
[1762212975661,0.17244735,106650.0,106640.0,0.22008138]
[1762212975859,0.17244735,106650.0,106640.0,0.23378138]
[1762212976066,0.17244735,106650.0,106640.0,0.59458138]
[1762212976569,0.17244735,106650.0,106640.0,0.23378138]
[1762212976970,0.17244735,106650.0,106640.0,0.12628738]
[1762212980578,0.15902735,106650.0,106640.0,0.23378138]
[1762212980772,0.1368652,106650.0,106640.0,0.59458138]
[1762212981370,0.1507752,106650.0,106640.0,0.58088138]
[1762212982669,0.1507752,106650.0,106640.0,0.58188138]
[1762212986085,0.17294391,106650.0,106640.0,0.58188138]
[1762212986889,0.17294391,106650.0,106640.0,0.48808738]
[1762212987891,0.17294391,106650.0,106640.0,0.58188148]
[1762212988588,0.17294391,106650.0,106640.0,0.58088148]
[1762212988788,0.17294391,106650.0,106640.0,0.48708738]
[1762212989092,0.17294391,106650.0,106640.0,0.58088148]